bitfinex-derivatives/quotes_BTCF0:USTF0_20250912
["timestamp","ask_amount","ask_price","bid_price","bid_amount"]
[1757670353472,0.6067,115040.0,115030.0,0.37715]
[1757670353977,0.6067,115040.0,115030.0,0.464065]
[1757670355575,0.9675,115040.0,115010.0,0.3608]
[1757670355878,0.03513,115010.0,115000.0,0.64073919]
[1757670356076,0.31513,115010.0,115000.0,0.78073919]
[1757670356672,0.31513,115010.0,115000.0,0.702625]
[1757670356980,0.31513,115010.0,115000.0,0.7026298]
[1757670357176,0.31613,115010.0,115000.0,0.7066298]
[1757670358379,0.31713,115010.0,115000.0,0.3498298]
[1757670359582,0.31713,115010.0,115000.0,0.7106298]
[1757670361685,0.31713,115010.0,115000.0,0.6930798]
[1757670362085,0.56713,115010.0,115000.0,0.6930798]
[1757670362285,0.56713,115010.0,115000.0,0.1922798]
[1757670362481,0.56713,115010.0,115000.0,0.03433748]
[1757670362684,0.92793,115010.0,115000.0,0.02561029]
[1757670363789,0.92793,115010.0,115000.0,0.03429503]
[1757670364089,0.92793,115010.0,115000.0,0.02561029]
[1757670365092,0.92793,115010.0,115000.0,0.11254799]
[1757670365389,0.92793,115010.0,115000.0,0.02561029]
[1757670365589,0.92793,115010.0,115000.0,0.11254799]
[1757670367795,1.19773,115010.0,115000.0,0.11254799]
[1757670368289,1.19773,115010.0,115000.0,0.0949377]
[1757670373696,0.83693,115010.0,115000.0,0.0949377]
[1757670376693,1.19773,115010.0,115000.0,0.0949377]
[1757670377198,0.94773,115010.0,115000.0,0.0949377]
[1757670377400,0.58693,115010.0,115000.0,0.18343669]
[1757670378494,0.58693,115010.0,115000.0,0.54423669]
[1757670378696,0.58693,115010.0,115000.0,0.18343669]
[1757670380297,0.58693,115010.0,115000.0,0.54423669]
[1757670382600,0.58693,115010.0,115000.0,0.62235088]
[1757670384604,0.58693,115010.0,115000.0,0.54423669]
[1757670385497,0.58693,115010.0,115000.0,0.62235088]
[1757670385896,0.58693,115010.0,115000.0,0.60480088]
[1757670386505,0.6071763,115010.0,115000.0,0.62235088]
[1757670386803,0.6071763,115010.0,115000.0,0.60480088]
[1757670387405,0.9679763,115010.0,115000.0,0.24400088]
[1757670388105,0.9679763,115010.0,115000.0,0.17305189]
[1757670388399,1.2179763,115010.0,115000.0,0.08611419]
[1757670388606,1.2179763,115010.0,115000.0,0.008]
[1757670388804,1.2179763,115010.0,114990.0,0.17400354]
[1757670389105,0.39507,115000.0,114990.0,0.17400354]
[1757670389406,0.71507,115000.0,114990.0,0.17400354]
[1757670390001,0.71507,115000.0,114990.0,0.17800354]
[1757670390509,0.71607,115000.0,114990.0,0.18100354]
[1757670391708,0.71607,115000.0,114990.0,0.17700354]
[1757670391908,0.71707,115000.0,114990.0,0.17800354]
[1757670392905,0.35627,115000.0,114990.0,0.19970354]
[1757670393214,0.35627,115000.0,114990.0,0.82790559]
[1757670393406,0.35627,115000.0,114990.0,0.7497914]
[1757670393608,0.35627,115000.0,114990.0,0.85941033]
[1757670395607,0.35627,115000.0,114990.0,0.13997083]
[1757670395813,0.71707,115000.0,114990.0,0.13997083]
[1757670396012,0.71707,115000.0,114990.0,0.0303519]
[1757670396214,0.71707,115000.0,114990.0,0.10853713]
[1757670397011,0.71707,115000.0,114990.0,0.09958728]
[1757670397208,0.96707,115000.0,114990.0,0.09958728]
[1757670397409,0.96707,115000.0,114990.0,0.02140205]
[1757670397611,0.96707,115000.0,114990.0,0.09958728]
[1757670398015,0.96707,115000.0,114990.0,0.02140205]
[1757670399318,0.71707,115000.0,114990.0,0.02140205]
[1757670404022,0.71707,115000.0,114990.0,0.004]
[1757670406124,0.71707,115000.0,114990.0,0.1126452]
[1757670406313,0.35627,115000.0,114990.0,0.1126452]
[1757670406622,0.35627,115000.0,114990.0,0.44083043]
[1757670407221,0.35627,115000.0,114990.0,0.80163043]
[1757670407424,0.35627,115000.0,114990.0,0.7234452]
[1757670407812,0.35627,115000.0,114990.0,0.83306413]
[1757670408019,0.322,115000.0,114990.0,0.96061174]
[1757670408222,0.322,115000.0,114990.0,1.36099281]
[1757670408615,0.322,115000.0,114990.0,1.47061174]
[1757670409922,0.322,115000.0,114990.0,1.36099281]
[1757670411124,0.20459512,115000.0,114990.0,1.36099281]
[1757670411422,0.20459512,115000.0,114990.0,1.47029618]
[1757670411623,0.20459512,115000.0,114990.0,1.36099281]
[1757670411820,0.20459512,115000.0,114990.0,1.49108564]
[1757670417126,0.1411818,115000.0,114990.0,1.49108564]
[1757670417419,0.03487,115030.0,115020.0,0.0869226]
[1757670417624,0.24487,115030.0,115020.0,1.02565588]
[1757670417824,0.24487,115030.0,115020.0,0.9477226]
[1757670418019,0.24487,115030.0,115020.0,1.0568292]
[1757670418520,0.24787,115030.0,115020.0,1.0578292]
[1757670419118,0.24887,115030.0,115020.0,1.0588292]
[1757670420625,0.24887,115030.0,115020.0,1.018935]
[1757670421625,0.24887,115030.0,115020.0,1.09675811]
[1757670422128,0.22696,115030.0,115020.0,1.34675811]
[1757670422422,0.214,115030.0,115020.0,1.48664609]
[1757670424025,0.09861313,115030.0,115020.0,1.48664609]
[1757670424329,0.03194413,115030.0,115020.0,1.48664609]
[1757670424529,0.004,115030.0,115020.0,1.48664609]
[1757670425127,0.004,115030.0,115020.0,1.59545617]
[1757670425323,0.01373,115050.0,115030.0,0.0869135]
[1757670425523,0.30373,115050.0,115040.0,0.4477075]
[1757670425728,0.30373,115050.0,115040.0,0.9677075]
[1757670426729,0.32564,115050.0,115040.0,0.9677075]
[1757670426928,0.32564,115050.0,115040.0,1.3285075]
[1757670427131,0.32864,115050.0,115040.0,1.3295075]
[1757670427526,0.57864,115050.0,115040.0,1.3295075]
[1757670427831,0.57864,115050.0,115040.0,0.4687075]
[1757670428030,0.57864,115050.0,115040.0,0.1079075]
[1757670428331,0.57964,115050.0,115040.0,0.1079075]
[1757670429128,0.57964,115050.0,115040.0,0.1089075]
[1757670433930,0.57964,115050.0,115040.0,0.002]
[1757670435730,0.59970292,115050.0,115040.0,0.002]
[1757670435937,0.03564,115040.0,115030.0,0.10453602]
[1757670436137,0.32564,115040.0,115030.0,0.10453602]
[1757670437035,0.32664,115040.0,115030.0,0.10553602]
[1757670437431,0.32864,115040.0,115030.0,0.10653602]
[1757670438231,0.68944,115040.0,115030.0,0.002]
[1757670438433,0.93944,115040.0,115020.0,0.4300124]
[1757670438639,0.03564,115030.0,115020.0,0.0692124]
[1757670438838,0.01373,115020.0,115010.0,0.16464136]
[1757670439140,0.32564,115020.0,115010.0,0.54544136]
[1757670440039,0.32664,115020.0,115010.0,0.54644136]
[1757670441035,0.32664,115020.0,115010.0,1.05644136]
[1757670441440,0.32764,115020.0,115010.0,1.05644136]
[1757670441631,0.32764,115020.0,115010.0,1.12743285]
[1757670448254,0.32764,115020.0,115010.0,1.04971749]
[1757670450439,0.32764,115020.0,115010.0,1.12743285]
[1757670451345,0.292,115020.0,115010.0,1.37743285]
[1757670451551,0.30561,115020.0,115010.0,1.29971749]
[1757670452147,0.30561,115020.0,115010.0,1.37771565]
[1757670452743,0.30561,115020.0,115010.0,1.39504221]
[1757670453249,0.30561,115020.0,115010.0,1.31704405]
[1757670454745,0.292,115020.0,115010.0,1.31704405]
[1757670454956,0.072,115020.0,115010.0,1.61158687]
[1757670455251,0.06152377,115020.0,115010.0,1.68969258]
[1757670455550,0.00582377,115020.0,115010.0,1.68969258]
[1757670455757,0.03483,115040.0,115030.0,0.086915]
[1757670455953,0.31483,115040.0,115030.0,1.11693351]
[1757670457149,0.31783,115040.0,115030.0,1.009715]
[1757670459544,0.31783,115040.0,115030.0,1.11893351]
[1757670464251,0.56783,115040.0,115030.0,0.589715]
[1757670464652,0.56783,115040.0,115030.0,0.69893351]
[1757670467054,0.31783,115040.0,115030.0,0.69893351]
[1757670473759,0.56783,115040.0,115030.0,0.61201851]
[1757670473970,0.56783,115040.0,115030.0,0.18929211]
[1757670474267,0.56783,115040.0,115030.0,0.002]
[1757670474764,0.92863,115040.0,115030.0,0.002]
[1757670475063,0.92863,115040.0,115030.0,0.08008929]
[1757670475456,0.92863,115040.0,115030.0,0.01008929]
[1757670476053,0.92863,115040.0,115010.0,0.6279341]
[1757670476054,0.03609,115030.0,115010.0,0.6279341]
[1757670476356,0.03609,115020.0,115010.0,0.18021]
[1757670476561,0.31609,115020.0,115010.0,0.18021]
[1757670476862,0.56609,115020.0,115010.0,0.2671401]
[1757670477263,0.56609,115020.0,115010.0,0.15892159]
[1757670478066,0.56709,115020.0,115010.0,0.15992159]
[1757670478269,0.56709,115020.0,115010.0,0.16092159]
[1757670479168,0.56709,115020.0,115010.0,0.15992159]
[1757670479372,0.56809,115020.0,115010.0,0.15992159]
[1757670480277,0.56809,115020.0,115010.0,0.18256159]
[1757670482273,0.56809,115020.0,115010.0,0.07299149]
[1757670482873,0.58862295,115020.0,115010.0,0.07299149]
[1757670483073,0.94942295,115020.0,115010.0,0.07299149]
[1757670484972,0.94942295,115020.0,115010.0,0.002]
[1757670497988,0.92889,115020.0,115010.0,0.002]
[1757670501292,0.67889,115020.0,115010.0,0.3615701]
[1757670501490,0.31809,115020.0,115010.0,0.3615701]
[1757670507988,0.31809,115020.0,115010.0,0.3389301]
[1757670508188,0.67889,115020.0,115010.0,0.3389301]
[1757670508389,0.67889,115020.0,115010.0,0.252]
[1757670508590,0.67889,115020.0,115010.0,0.002]
[1757670509296,0.67889,115020.0,115010.0,0.0889301]
[1757670511293,0.67889,115020.0,115010.0,0.1121101]
[1757670512994,0.67889,115020.0,115010.0,0.0889301]
[1757670516297,0.31809,115020.0,115010.0,0.1121101]
[1757670516997,0.31809,115020.0,115010.0,0.4729101]
[1757670517296,0.31809,115020.0,115010.0,0.1121101]
[1757670518498,0.31809,115020.0,115010.0,0.19035113]
[1757670523310,0.31809,115020.0,115010.0,0.44035113]
[1757670523505,0.31809,115020.0,115010.0,0.3621101]
[1757670523704,0.30418,115020.0,115010.0,0.9215901]
[1757670523900,0.30418,115020.0,115010.0,1.03076999]
[1757670525105,0.30418,115020.0,115010.0,1.39156999]
[1757670527208,0.282,115020.0,115010.0,1.39156999]
[1757670527807,0.282,115020.0,115010.0,1.43836137]
[1757670530910,0.282,115020.0,115010.0,1.2823901]
[1757670532607,0.282,115020.0,115010.0,1.39165544]
[1757670537107,0.2948,115020.0,115010.0,1.38217544]
[1757670537308,0.56799,115020.0,115010.0,0.65217544]
[1757670537708,0.56799,115020.0,115010.0,0.56059564]
[1757670540415,0.56799,115020.0,115010.0,0.63860946]
[1757670540611,0.56799,115020.0,115010.0,0.45849936]
[1757670540807,0.56799,115020.0,115010.0,0.01968554]
[1757670541012,0.56799,115020.0,115010.0,0.12895088]
[1757670541216,0.56799,115020.0,115010.0,0.18929567]
[1757670541415,0.56799,115020.0,115010.0,0.08003033]
[1757670542717,0.92879,115020.0,115010.0,0.08003033]
[1757670542918,1.19859,115020.0,115010.0,0.08003033]
[1757670547221,1.19859,115020.0,115010.0,0.16696043]
[1757670551224,1.19859,115020.0,115010.0,0.08003033]
[1757670554929,0.92879,115020.0,115010.0,0.08003033]
[1757670559827,0.92879,115020.0,115010.0,0.002]
[1757670560130,0.92879,115020.0,115010.0,0.08003033]
[1757670560632,1.19859,115020.0,115010.0,0.08003033]
[1757670560932,1.19859,115020.0,115010.0,0.16696043]
[1757670563838,1.19859,115020.0,115010.0,0.002]
[1757670564031,1.19859,115020.0,115010.0,0.0889301]
[1757670564532,1.19859,115020.0,115010.0,0.16696043]
[1757670566542,0.83779,115020.0,115010.0,0.1120001]
[1757670569643,0.31799,115020.0,115010.0,0.1120001]
[1757670570053,0.31799,115020.0,115010.0,0.55083043]
[1757670570249,0.31799,115020.0,115010.0,0.4728001]
[1757670570448,0.31799,115020.0,115010.0,0.58206544]
[1757670570949,0.31799,115020.0,115010.0,0.83206544]
[1757670578656,0.31799,115020.0,115010.0,0.7228001]
[1757670579356,0.31799,115020.0,115010.0,0.4728001]
[1757670580258,0.31799,115020.0,115010.0,0.55096736]
[1757670581164,0.282,115020.0,115010.0,1.45923414]
[1757670581463,0.282,115020.0,115010.0,1.11579327]
[1757670581663,0.282,115020.0,115010.0,1.83739327]
[1757670583359,0.282,115020.0,115010.0,1.58739327]
[1757670584161,0.282,115020.0,115010.0,1.50044809]
[1757670585361,0.282,115020.0,115010.0,1.75044809]
[1757670587466,0.282,115020.0,115010.0,1.85967648]
[1757670589569,0.29592,115020.0,115010.0,1.50019648]
[1757670590069,0.29592,115020.0,115010.0,1.12018762]
[1757670591467,0.31847,115020.0,115010.0,0.75938633]
[1757670593262,0.56847,115020.0,115010.0,0.64938623]
[1757670593455,0.56847,115020.0,115010.0,0.4497301]
[1757670593765,0.56847,115020.0,115010.0,0.1108401]
[1757670594061,0.56847,115020.0,115010.0,0.1981572]
[1757670594365,0.92927,115020.0,115010.0,0.08004591]
[1757670596769,0.92927,115020.0,115010.0,0.10195591]
[1757670597268,0.56847,115020.0,115010.0,0.18888601]
[1757670597466,0.92927,115020.0,115010.0,0.18888601]
[1757670599166,1.19907,115020.0,115010.0,0.18888601]
[1757670599370,0.83827,115020.0,115010.0,0.18888601]
[1757670602272,0.58827,115020.0,115010.0,0.18888601]
[1757670602473,0.58827,115020.0,115010.0,0.3608401]
[1757670602675,0.58827,115020.0,115010.0,0.43888601]
[1757670603061,0.58827,115020.0,115010.0,0.4700672]
[1757670603267,0.5518,115020.0,115010.0,1.03840345]
[1757670603574,0.57474,115020.0,115010.0,0.80917635]
[1757670605073,0.30494,115020.0,115010.0,0.80917635]
[1757670605376,0.30494,115020.0,115010.0,0.91917635]
[1757670606175,0.30494,115020.0,115010.0,0.80917635]
[1757670606478,0.30494,115020.0,115010.0,0.91917635]
[1757670606671,0.282,115020.0,115010.0,0.80917635]
[1757670606877,0.282,115020.0,115010.0,1.2111201]
[1757670607080,0.282,115020.0,115010.0,1.32038679]
[1757670607378,0.282,115020.0,115010.0,1.2111201]
[1757670610776,0.062,115020.0,115010.0,1.36709137]
[1757670611176,0.062,115020.0,115010.0,1.49788368]
[1757670612179,0.062,115020.0,115010.0,1.42885759]
[1757670612576,0.122,115020.0,115010.0,1.42885759]
[1757670613481,0.342,115020.0,115010.0,1.42885759]
[1757670613779,0.342,115020.0,115010.0,1.58482886]
[1757670613780,0.092,115020.0,115010.0,1.58482886]
[1757670614581,0.342,115020.0,115010.0,1.58482886]
[1757670615581,0.17767785,115020.0,115010.0,1.58482886]
[1757670620888,0.17767785,115020.0,115010.0,1.42885759]
[1757670621187,0.14267785,115020.0,115010.0,1.58479201]
[1757670621383,0.01373,115050.0,115040.0,0.0869075]
[1757670621684,0.21373,115050.0,115040.0,1.17426227]
[1757670622582,0.21473,115050.0,115040.0,1.17526227]
[1757670622782,0.21773,115050.0,115040.0,1.17626227]
[1757670623794,0.21773,115050.0,115040.0,1.25418034]
[1757670624090,0.49067,115050.0,115040.0,0.82503907]
[1757670624292,0.49067,115050.0,115040.0,0.89291855]
[1757670624684,0.49067,115050.0,115040.0,0.25211855]
[1757670624993,0.49067,115050.0,115040.0,0.61291855]
[1757670628094,0.24067,115050.0,115040.0,0.61291855]
[1757670628296,0.49067,115050.0,115040.0,0.61291855]
[1757670628903,0.49067,115050.0,115040.0,0.53500048]
[1757670629100,0.49067,115050.0,115040.0,0.64414175]
[1757670632795,0.24067,115050.0,115040.0,0.64414175]
[1757670633100,0.21773,115050.0,115040.0,1.18414175]
[1757670633303,0.21773,115050.0,115040.0,1.09723425]
[1757670633500,0.48992,115050.0,115040.0,0.28334175]
[1757670633697,0.48992,115050.0,115040.0,0.25220349]
[1757670634102,0.85072,115050.0,115040.0,0.17420048]
[1757670634405,0.48992,115050.0,115040.0,0.17420048]
[1757670635102,0.48992,115050.0,115040.0,0.25220349]
[1757670635502,0.48992,115050.0,115040.0,0.08729298]
[1757670635796,0.48992,115050.0,115040.0,0.1653403]
[1757670636003,0.48992,115050.0,115040.0,0.08729298]
[1757670636395,0.85072,115050.0,115040.0,0.19643425]
[1757670638608,0.48992,115050.0,115040.0,0.28334175]
[1757670638808,0.48992,115050.0,115040.0,0.19643425]
[1757670639410,0.23992,115050.0,115040.0,0.19643425]
[1757670639608,0.60072,115050.0,115040.0,0.19643425]
[1757670640610,0.85072,115050.0,115040.0,0.19643425]
[1757670640909,0.85072,115050.0,115040.0,0.0975381]
[1757670641109,0.85072,115050.0,115040.0,0.0275381]
[1757670641410,0.85072,115050.0,115030.0,0.0869146]
[1757670641411,0.03531,115040.0,115030.0,0.0869146]
[1757670641709,0.34531,115040.0,115030.0,0.0869146]
[1757670642309,0.03531,115030.0,115020.0,0.19606387]
[1757670642609,0.34531,115030.0,115020.0,0.10914127]
[1757670642808,0.34531,115030.0,115020.0,0.19606387]
[1757670643607,0.34631,115030.0,115020.0,0.19706387]
[1757670643905,0.70711,115030.0,115020.0,0.001]
[1757670644507,0.70811,115030.0,115020.0,0.001]
[1757670649019,0.34731,115030.0,115020.0,0.001]
[1757670649219,0.34731,115030.0,115020.0,0.0879228]
[1757670649415,0.34731,115030.0,115020.0,0.1108128]
[1757670650218,0.34731,115030.0,115020.0,0.18881799]
[1757670650417,0.34731,115030.0,115020.0,0.1108128]
[1757670651120,0.34731,115030.0,115020.0,0.54961799]
[1757670651617,0.34731,115030.0,115020.0,0.18881799]
[1757670653720,0.34731,115030.0,115020.0,0.16592799]
[1757670654019,0.34731,115030.0,115020.0,0.18762799]
[1757670657524,0.34731,115030.0,115020.0,0.1096228]
[1757670659829,0.34692,115030.0,115020.0,0.1096228]
[1757670660229,0.34692,115030.0,115020.0,0.0879228]
[1757670660430,0.34692,115030.0,115020.0,0.001]
[1757670662040,0.34692,115030.0,115020.0,0.0879228]
[1757670662231,0.34692,115030.0,115020.0,0.001]
[1757670662532,0.95772,115030.0,115010.0,0.07800519]
[1757670662732,0.01283,115010.0,115000.0,0.14829365]
[1757670662932,0.34492,115010.0,115000.0,0.07800519]
[1757670663431,0.34492,115010.0,115000.0,0.14746607]
[1757670663732,0.34492,115010.0,115000.0,0.16916607]
[1757670663933,0.34492,115010.0,115000.0,0.14746607]
[1757670664327,0.34592,115010.0,115000.0,0.15046607]
[1757670664524,0.70672,115010.0,115000.0,0.17216607]
[1757670664928,0.70772,115010.0,115000.0,0.17316607]
[1757670666531,0.70772,115010.0,115000.0,0.15146607]
[1757670667330,0.70772,115010.0,115000.0,0.17316607]
[1757670667833,0.34692,115010.0,115000.0,0.53396607]
[1757670668030,0.34692,115010.0,115000.0,0.17316607]
[1757670668431,0.34692,115010.0,115000.0,0.53396607]
[1757670668734,0.34692,115010.0,115000.0,0.17316607]
[1757670670924,0.34692,115010.0,115000.0,0.62090397]
[1757670672439,0.34692,115010.0,115000.0,0.53396607]
[1757670672640,0.34692,115010.0,115000.0,0.17316607]
[1757670675133,0.34692,115010.0,115000.0,0.26010397]
[1757670679541,0.34692,115010.0,115000.0,0.15146607]
[1757670679840,0.34692,115010.0,115000.0,0.004]
[1757670681244,0.70772,115010.0,115000.0,0.004]
[1757670682745,0.70772,115010.0,115000.0,0.1126379]
[1757670684548,0.34692,115010.0,115000.0,0.3626379]
[1757670684944,0.34692,115010.0,115000.0,0.45806584]
[1757670685147,0.34692,115010.0,115000.0,0.81886584]
[1757670685335,0.312,115010.0,115000.0,1.34888584]
[1757670685539,0.312,115010.0,115000.0,1.27088065]
[1757670685842,0.312,115010.0,115000.0,1.38002192]
[1757670686043,0.312,115010.0,115000.0,1.50985433]
[1757670686243,0.312,115010.0,115000.0,1.59694691]
[1757670687242,0.312,115010.0,115000.0,1.34694691]
[1757670688847,0.142,115010.0,115000.0,1.34694691]
[1757670689046,0.142,115010.0,115000.0,1.2376658]
[1757670689947,0.142,115010.0,115000.0,1.39360022]
[1757670690152,0.342,115010.0,115000.0,1.39360022]
[1757670690647,0.35497,115010.0,115000.0,1.30664748]
[1757670691549,0.342,115010.0,115000.0,1.15071306]
[1757670695258,0.162,115010.0,115000.0,1.4876658]
[1757670696955,0.312,115010.0,115000.0,1.4876658]
[1757670697756,0.312,115010.0,115000.0,1.2376658]
[1757670698857,0.312,115010.0,115000.0,1.34685798]
[1757670700456,0.312,115010.0,115000.0,1.24988524]
[1757670700457,0.32497,115010.0,115000.0,1.24988524]
[1757670701757,0.34706,115010.0,115000.0,0.92988524]
[1757670703454,0.59706,115010.0,115000.0,0.51311493]
[1757670704262,0.59706,115010.0,115000.0,0.49141493]
[1757670705260,0.59706,115010.0,115000.0,0.51452493]
[1757670707863,0.59706,115010.0,115000.0,0.15372493]
[1757670710762,0.59706,115010.0,115000.0,0.24066293]
[1757670712368,0.59706,115010.0,115000.0,0.15372493]
[1757670713667,0.59655,115010.0,115000.0,0.15244493]
[1757670713862,0.59655,115010.0,115000.0,0.23938293]
[1757670714166,0.59655,115010.0,115000.0,0.15244493]
[1757670715767,0.59655,115010.0,115000.0,0.23938293]
[1757670716268,0.59655,115010.0,115000.0,0.15244493]
[1757670716463,0.59655,115010.0,115000.0,0.23938293]
[1757670717164,0.562,115010.0,115000.0,0.10836075]
[1757670717368,0.59655,115010.0,115000.0,0.04325275]
[1757670717873,0.59655,115010.0,115000.0,0.13019075]
[1757670719164,0.59655,115010.0,115000.0,0.49099075]
[1757670719564,0.59655,115010.0,115000.0,0.60018293]
[1757670720077,0.59655,115010.0,115000.0,0.23938293]
[1757670720378,0.59655,115010.0,115000.0,0.13019075]
[1757670721073,0.59655,115010.0,115000.0,0.15244493]
[1757670721278,0.59655,115010.0,115000.0,0.23938293]
[1757670721479,0.59655,115010.0,115000.0,0.15244493]
[1757670721881,0.59655,115010.0,115000.0,0.13061493]
[1757670722678,0.59555,115010.0,115000.0,0.12761493]
[1757670723179,0.59555,115010.0,115000.0,0.21455293]
[1757670723676,0.59555,115010.0,115000.0,0.21655293]
[1757670723980,0.59655,115010.0,115000.0,0.21655293]
[1757670724487,0.59655,115010.0,115000.0,0.12961493]
[1757670724881,0.59655,115010.0,115000.0,0.21655293]
[1757670725584,0.59655,115010.0,115000.0,0.23838293]
[1757670725784,0.59655,115010.0,115000.0,0.12919075]
[1757670727479,0.59655,115010.0,115000.0,0.23859741]
[1757670730488,0.59655,115010.0,115000.0,0.15165941]
[1757670730687,0.59655,115010.0,115000.0,0.04225275]
[1757670731888,0.59655,115010.0,115000.0,0.12919075]
[1757670733891,0.59655,115010.0,115000.0,0.23873287]
[1757670736192,0.562,115010.0,115000.0,0.21690287]
[1757670739492,0.562,115010.0,115000.0,0.10736075]
[1757670739889,0.562,115010.0,115000.0,0.21689566]
[1757670741781,0.562,115010.0,115000.0,0.57769566]
[1757670742790,0.562,115010.0,115000.0,0.46816075]
[1757670748698,0.562,115010.0,115000.0,0.57769977]
[1757670751697,0.562,115010.0,115000.0,0.21689977]
[1757670755200,0.562,115010.0,115000.0,0.46816075]
[1757670755999,0.562,115010.0,115000.0,0.10736075]
[1757670757402,0.312,115010.0,115000.0,0.71816075]
[1757670757903,0.312,115010.0,115000.0,0.87409517]
[1757670759305,0.312,115010.0,115000.0,0.62409517]
[1757670759602,0.312,115010.0,115000.0,0.46816075]
[1757670760604,0.312,115010.0,115000.0,0.57770222]
[1757670762105,0.312,115010.0,115000.0,0.46816075]
[1757670763605,0.312,115010.0,115000.0,0.46812759]
[1757670767004,0.312,115010.0,115000.0,0.46857778]
[1757670771913,0.34797,115010.0,115000.0,0.49085778]
[1757670772612,0.34797,115010.0,115000.0,0.13005778]
[1757670772811,0.34797,115010.0,115000.0,0.49085778]
[1757670775016,0.34797,115010.0,115000.0,0.60038321]
[1757670778119,0.34797,115010.0,115000.0,0.49085778]
[1757670780111,0.34797,115010.0,115000.0,0.60038789]
[1757670782820,0.34797,115010.0,115000.0,0.49085778]
[1757670784020,0.34797,115010.0,115000.0,0.13005778]
[1757670784623,0.34797,115010.0,115000.0,0.49085778]
[1757670785920,0.34797,115010.0,115000.0,0.13005778]
[1757670786219,0.34797,115010.0,115000.0,0.49085778]
[1757670791228,0.59797,115010.0,115000.0,0.40391978]
[1757670791426,0.59797,115010.0,115000.0,0.02083978]
[1757670791830,0.59797,115010.0,115000.0,0.04311978]
[1757670793036,0.59797,115010.0,115000.0,0.13005768]
[1757670796042,0.59797,115010.0,115000.0,0.49085768]
[1757670799845,0.59797,115010.0,115000.0,0.40391978]
[1757670801244,0.59797,115010.0,115000.0,0.49085768]
[1757670802542,0.59797,115010.0,115000.0,0.4730179]
[1757670802744,0.59797,115010.0,115000.0,0.58255772]
[1757670812045,0.59797,115010.0,115000.0,0.4730179]
[1757670815552,0.59797,115010.0,115000.0,0.58257202]
[1757670817054,0.6180373,115010.0,115000.0,0.58257202]
[1757670817450,0.6180373,115010.0,115000.0,0.4730179]
[1757670817650,0.6180373,115010.0,115000.0,0.4507379]
[1757670817953,0.6180373,115010.0,115000.0,0.4723779]
[1757670819256,0.3680373,115010.0,115000.0,0.4723779]
[1757670832364,0.3680373,115010.0,115000.0,0.1115779]
[1757670836669,0.3680373,115010.0,115000.0,0.02464]
[1757670837869,0.3680373,115010.0,115000.0,0.1115779]
[1757670838866,1.2486373,115010.0,115000.0,0.11256925]
[1757670839060,1.2486373,115010.0,115000.0,0.19084161]
[1757670839267,1.2486373,115010.0,115000.0,0.08127236]
[1757670841972,1.2486373,115010.0,115000.0,0.003]
[1757670854471,0.9986373,115010.0,115000.0,0.003]
[1757670859776,0.9986373,115010.0,115000.0,0.1121979]
[1757670859972,0.9986373,115010.0,115000.0,0.02526]
[1757670861481,0.9986373,115010.0,115000.0,0.10353236]
[1757670863377,0.9986373,115010.0,115000.0,0.08127236]
[1757670866178,0.9986373,115010.0,115000.0,0.003]
[1757670866376,0.9986373,115010.0,115000.0,0.1113677]
[1757670866579,0.9986373,115010.0,115000.0,0.43964006]
[1757670867277,0.9986373,115010.0,115000.0,0.3613677]
[1757670869284,0.7288373,115010.0,115000.0,0.3613677]
[1757670870385,0.7288373,115010.0,115000.0,0.47093695]
[1757670875392,0.70877,115010.0,115000.0,0.47093695]
[1757670875792,0.70877,115010.0,115000.0,0.48823147]
[1757670879389,0.70877,115010.0,115000.0,0.23823147]
[1757670882191,0.34797,115010.0,115000.0,0.92720325]
[1757670882489,0.34797,115010.0,115000.0,0.84903147]
[1757670882689,0.33438,115010.0,115000.0,0.85905147]
[1757670886304,0.34724,115010.0,115000.0,0.84903147]
[1757670893316,0.34724,115010.0,115000.0,0.73946222]
[1757670904420,0.34724,115010.0,115000.0,0.7221677]
[1757670904920,0.34724,115010.0,115000.0,0.7398182]
[1757670905822,0.34724,115010.0,115000.0,0.7221677]
[1757670914625,0.312,115010.0,115000.0,1.28950632]
[1757670914829,0.312,115010.0,115000.0,1.75255358]
[1757670915029,0.312,115010.0,115000.0,1.6429877]
[1757670925140,0.312,115010.0,115000.0,1.79892212]
[1757670929937,0.32588,115010.0,115000.0,1.53890212]
[1757670930148,0.34689,115010.0,115000.0,0.87810212]
[1757670930340,0.59689,115010.0,115000.0,0.87810212]
[1757670930737,0.59689,115010.0,115000.0,0.83154284]
[1757670939244,0.34689,115010.0,115000.0,0.83154284]
[1757670940447,0.34689,115010.0,115000.0,0.7221677]
[1757670941647,0.34689,115010.0,115000.0,0.87810212]
[1757670944549,0.33301,115010.0,115000.0,0.98890212]
[1757670944753,0.312,115010.0,115000.0,1.58890212]
[1757670947155,0.312,115010.0,115000.0,1.4329677]
[1757670948149,0.312,115010.0,115000.0,1.6829677]
[1757670950262,0.312,115010.0,115000.0,1.83890212]
[1757670950957,0.312,115010.0,115000.0,1.6829677]
[1757670962267,0.24482653,115010.0,115000.0,1.51992044]
[1757670962474,0.08047758,115010.0,115000.0,1.76992044]
[1757670963976,0.331,115010.0,115000.0,1.76992044]
[1757670967380,0.331,115010.0,115000.0,1.89733031]
[1757670973684,0.16665753,115010.0,115000.0,1.89733031]
[1757670976186,0.04765449,115030.0,115020.0,0.1090588]
[1757670976387,0.22765449,115030.0,115020.0,0.4698588]
[1757670977582,0.22865449,115030.0,115020.0,0.4708588]
[1757670977788,0.23065449,115030.0,115020.0,0.4718588]
[1757670978987,0.23065449,115030.0,115020.0,0.38494]
[1757670979388,0.23065449,115030.0,115020.0,0.49439074]
[1757670979889,0.23065449,115030.0,115020.0,0.58130944]
[1757670981484,0.21893,115030.0,115020.0,0.56958475]
[1757670984592,0.21893,115030.0,115020.0,0.46013401]
[1757670994400,0.183,115030.0,115020.0,1.39093401]
[1757670994699,0.183,115030.0,115020.0,1.50045903]
[1757670995696,0.183,115030.0,115020.0,1.39093401]
[1757670995896,0.183,115030.0,115020.0,1.54728586]
[1757670998304,0.183,115030.0,115020.0,1.39093401]
[1757670999609,0.183,115030.0,115020.0,1.50039305]